bitfinex/quotes_SOLUSD_20260314
["timestamp","ask_amount","ask_price","bid_price","bid_amount"]
[1773508485997,0.46584969,87.047,87.013,0.46214113]
[1773508488401,11.48817866,87.046,87.014,11.49240352]
[1773508488697,0.46584969,87.045,87.015,0.46214113]
[1773508491398,0.49895978,87.043,87.015,0.46214113]
[1773508493022,11.4887066,87.042,87.015,0.46214113]
[1773508493316,0.49895978,87.041,87.015,0.46214113]
[1773508494419,11.48897058,87.04,87.015,0.46214113]
[1773508494602,0.49895978,87.039,87.015,0.46214113]
[1773508496226,0.49895978,87.039,87.017,0.45415845]
[1773508497426,11.48923458,87.038,87.017,0.45415845]
[1773508497629,0.49895978,87.037,87.017,0.45415845]
[1773508498522,11.48923458,87.038,87.017,0.45415845]
[1773508499108,0.49895978,87.051,87.021,0.45415845]
[1773508499422,0.49895978,87.049,87.021,0.45415845]
[1773508500422,0.49895978,87.047,87.021,0.45415845]
[1773508502132,0.49895978,87.045,87.017,0.45415845]
[1773508505131,0.49895978,87.043,87.019,0.45415845]
[1773508506431,0.49895978,87.043,87.021,0.45415845]
[1773508508212,0.49895978,87.041,87.021,0.45415845]
[1773508537567,0.45917757,87.05,87.023,0.45559917]
[1773508537947,7.32,87.069,87.022,11.49134701]
[1773508537948,0.45917757,87.068,87.041,0.45559917]
[1773508539658,0.45917757,87.067,87.041,0.45559917]
[1773508540941,11.4855397,87.066,87.041,0.45559917]
[1773508541141,0.45917757,87.065,87.041,0.45559917]
[1773508544861,11.94498111,87.064,87.041,0.45559917]
[1773508545242,0.45917757,87.063,87.041,0.45559917]
[1773508549168,11.4860674,87.062,87.041,0.45559917]
[1773508549466,0.45917757,87.061,87.041,0.45559917]
[1773508551150,0.46099572,87.059,87.041,0.45559917]
[1773508551967,0.4938587,87.064,87.042,0.49239041]
[1773508552347,11.48573247,87.065,87.042,0.49239041]
[1773508553166,11.97959117,87.065,87.042,0.49239041]
[1773508554562,0.4938587,87.064,87.042,0.49239041]
[1773508562865,11.48504125,87.07,87.044,0.49239041]
[1773508563072,0.4938587,87.086,87.061,0.49239041]
[1773508563576,0.4938587,87.086,87.038,7.32]
[1773508563577,0.4938587,87.069,87.023,0.49239041]
[1773508563777,0.4938587,87.049,87.023,0.49239041]
[1773508564651,0.4938587,87.047,87.023,0.49239041]
[1773508566680,0.4938587,87.045,87.023,0.49239041]
[1773508567775,0.4938587,87.045,87.019,0.49239041]
[1773508567974,0.4938587,87.045,87.012,0.49239041]
[1773508568678,0.4938587,87.043,87.013,11.49253559]
[1773508568876,0.4938587,87.043,87.014,0.49239041]
[1773508569179,0.4938587,87.057,87.031,0.49239041]
[1773508572485,0.4938587,87.055,87.031,0.49239041]
[1773508574479,0.4938587,87.053,87.031,0.49239041]
[1773508577088,0.4938587,87.053,87.032,11.49002665]
[1773508577266,0.4938587,87.053,87.033,0.49239041]
[1773508593288,11.48738684,87.052,87.033,0.49239041]
[1773508593490,0.46712909,87.051,87.033,0.49239041]
[1773508594190,11.48738684,87.052,87.015,7.32]
[1773508594191,0.46712909,87.077,87.035,0.49249427]
[1773508594485,0.46712909,87.076,87.041,0.49249427]
[1773508594890,0.46712909,87.076,87.035,0.49249427]
[1773508595485,0.46712909,87.074,87.037,0.49249427]
[1773508595678,0.46712909,87.074,87.041,0.49249427]
[1773508599198,0.46712909,87.069,87.036,11.48949859]
[1773508599403,0.46712909,87.059,87.031,11.49010742]
[1773508600499,0.46712909,87.057,87.031,11.49010742]
[1773508601502,0.46712909,87.057,87.032,0.49249427]
[1773508603302,0.46712909,87.055,87.032,0.49249427]
[1773508604784,0.46712909,87.055,87.034,0.49249427]
[1773508614508,0.46712909,87.055,87.036,0.48481796]
[1773508626023,11.48712293,87.054,87.036,0.48481796]
[1773508626223,0.47282691,87.053,87.036,0.48481796]
[1773508627321,0.47282691,87.06,87.036,0.48481796]
[1773508627529,0.47282691,87.06,87.038,0.48481796]
[1773508628016,0.47282691,87.06,87.033,0.48481796]
[1773508629525,11.4864632,87.059,87.033,0.48481796]
[1773508629823,0.47282691,87.058,87.033,0.48481796]
[1773508631123,11.48672708,87.057,87.033,0.48481796]
[1773508631322,0.47282691,87.056,87.033,0.48481796]
[1773508633831,11.48699098,87.055,87.033,0.48481796]
[1773508634017,0.47282691,87.054,87.033,0.48481796]
[1773508639033,0.47282691,87.052,87.033,0.48481796]
[1773508641232,64.73426354,87.087,87.011,0.48481796]
[1773508641233,0.47282691,87.049,87.011,0.48481796]
[1773508641442,0.48539511,87.019,86.993,0.6]
[1773508641639,0.32292715,87.019,86.99,0.48426931]
[1773508642718,11.49187524,87.018,86.99,0.48426931]
[1773508643526,0.48539511,87.017,86.99,0.48426931]
[1773508645742,0.48539511,87.015,86.99,0.48426931]
[1773508650747,0.48539511,87.013,86.99,0.48426931]
[1773508653255,11.49266767,87.012,86.99,0.48426931]
[1773508653554,0.48539511,87.011,86.99,0.48426931]
[1773508655758,0.48539511,87.009,86.99,0.48426931]
[1773508655969,0.48539511,86.999,86.971,0.48426931]
[1773508656252,11.49293184,87.01,86.971,0.48426931]
[1773508656253,0.48539511,87.009,86.972,0.48426931]
[1773508656636,0.48539511,87.009,86.981,0.48426931]
[1773508656837,0.48539511,87.009,86.971,11.49808556]
[1773508656838,11.49234584,87.015,86.991,0.48426931]
[1773508657052,11.49174064,87.02,87.001,0.48426931]
[1773508658258,11.49055476,87.028,87.001,0.48426931]
[1773508659567,11.97594987,87.028,87.001,0.48426931]
[1773508660147,0.48539511,87.025,86.997,0.48426931]
[1773508661552,0.48539511,87.023,86.997,0.48426931]
[1773508662646,0.48539511,87.021,86.997,0.48426931]
[1773508664765,0.48539511,87.019,86.986,0.48426931]
[1773508666543,43.96642558,87.02,86.986,0.48426931]
[1773508666544,0.48539511,87.017,86.986,0.48426931]
[1773508668666,0.48539511,87.015,86.986,0.48426931]
[1773508670963,11.49240352,87.014,86.991,0.4949939]
[1773508672863,0.45747895,87.013,86.991,0.4949939]
[1773508677553,11.49266767,87.012,86.991,0.4949939]
[1773508680378,0.45747895,87.011,86.991,0.4949939]
[1773508683264,11.49293184,87.01,86.991,0.4949939]
[1773508688584,11.49293184,87.01,86.991,11.99035808]
[1773508688785,11.49293184,87.01,86.992,0.45789947]
[1773508689083,11.49245378,87.014,86.992,0.45789947]
[1773508689587,11.94993273,87.014,86.992,0.45789947]
[1773508693386,0.45747895,87.013,86.992,0.45789947]
[1773508695601,0.45747895,87.012,86.992,0.45789947]
[1773508698195,0.45747895,87.01,86.992,0.45789947]
[1773508699895,0.45747895,87.008,86.987,0.45789947]
[1773508706502,0.46431225,87.006,86.983,0.4781493]
[1773508708287,0.46431225,87.006,86.984,11.97451644]
[1773508711308,0.46431225,87.006,86.985,0.4781493]
[1773508730924,0.48212053,87.004,86.985,0.4781493]
[1773508731216,0.48212053,87.004,86.981,7.32]
[1773508731415,11.49359232,87.005,86.958,0.48178642]
[1773508731416,0.48180652,86.989,86.958,0.48178642]
[1773508731806,0.48180652,86.989,86.961,0.48178642]
[1773508732698,0.48180652,86.989,86.96,11.69953772]
[1773508733115,0.48180652,86.987,86.96,12.18132414]
[1773508733320,0.48180652,86.987,86.961,0.48178642]
[1773508733818,0.48180652,86.987,86.96,11.69953772]
[1773508734329,0.48180652,86.987,86.96,12.18132414]
[1773508734509,0.48180652,86.985,86.961,0.48178642]
[1773508737629,11.49636714,86.984,86.961,0.48178642]
[1773508737925,0.48180652,86.983,86.961,0.48178642]
[1773508740627,0.48180652,86.981,86.961,0.48178642]
[1773508742025,0.48180652,86.981,86.96,0.2]
[1773508743211,0.48180652,86.981,86.96,0.68178642]
[1773508744809,11.49689583,86.98,86.961,0.48178642]
[1773508745011,0.48180652,86.979,86.961,0.48178642]
[1773508746021,0.48180652,86.979,86.963,0.48178642]
[1773508746618,11.97814165,86.985,86.963,0.48178642]
[1773508747224,28.73381876,87.006,86.971,0.48178642]
[1773508747739,28.7339808,87.005,86.971,0.48178642]
[1773508748119,3.74554796,87.0,86.971,0.48178642]
[1773508748527,28.7339808,87.005,86.971,0.48178642]
[1773508749229,0.48180652,87.002,86.971,0.48178642]
[1773508750426,40.22849786,87.003,86.971,0.48178642]
[1773508750427,0.48180652,87.0,86.971,0.48178642]
[1773508752634,11.49438499,86.999,86.971,0.48178642]
[1773508752842,0.48180652,86.998,86.971,0.48178642]
[1773508755653,0.48180652,86.996,86.971,0.48178642]
[1773508757241,11.49464924,86.997,86.981,0.48178642]
[1773508762051,11.98768701,87.006,86.981,0.48178642]
[1773508762239,0.49422679,87.005,86.981,0.48178642]
[1773508763145,11.49372442,87.004,86.981,0.48178642]
[1773508763344,0.49422679,87.003,86.981,0.48178642]
[1773508764652,0.49422679,87.001,86.981,0.48178642]
[1773508764950,0.49422679,87.001,86.963,7.32]
[1773508764951,0.49422679,87.001,86.971,0.45002289]
[1773508767747,3.7471648,87.01,86.971,0.45002289]
[1773508767748,0.49422679,86.999,86.971,0.45002289]
[1773508773755,0.49422679,86.997,86.971,0.45002289]
[1773508776542,11.49306393,87.009,86.981,0.45002289]
[1773508778872,0.49422679,87.009,86.982,0.45002289]
[1773508782783,11.98742281,87.008,86.984,0.45002289]
[1773508783871,0.49422679,87.007,86.984,0.45002289]
[1773508784372,0.49422679,87.007,86.98,0.45002289]
[1773508785477,0.49422679,87.005,86.981,0.45002289]
[1773508790085,11.49346022,87.006,86.982,0.46748566]
[1773508791772,11.49253559,87.013,86.984,0.487001]
[1773508793291,7.32,87.031,86.983,11.49649931]
[1773508793292,11.49161282,87.02,86.991,0.487001]
[1773508793494,0.4546974,87.029,87.001,0.487001]
[1773508793794,0.4546974,87.027,87.001,0.487001]
[1773508794180,0.4546974,87.027,86.997,0.487001]
[1773508797676,0.4546974,87.025,86.997,0.487001]
[1773508800570,11.49108291,87.024,86.997,0.487001]
[1773508800776,0.4546974,87.023,86.997,0.487001]
[1773508803779,0.4546974,87.021,87.001,0.487001]
[1773508805792,0.4546974,87.019,87.001,0.487001]
[1773508807296,0.4546974,87.024,87.001,0.487001]
[1773508812799,11.49121496,87.023,87.001,0.487001]
[1773508814096,0.4546974,87.023,87.001,0.487001]
[1773508815684,11.49134701,87.022,87.001,0.487001]
[1773508820303,11.94604441,87.022,87.001,0.487001]
[1773508823915,11.49042273,87.029,87.001,0.487001]
[1773508824216,0.45406442,87.028,87.001,0.487001]
[1773508825503,0.45406442,87.026,87.001,0.487001]
[1773508826707,11.49095087,87.025,87.001,0.487001]
[1773508827018,0.45406442,87.024,87.001,0.487001]
[1773508830789,11.49121496,87.023,87.001,0.487001]
[1773508832114,0.45406442,87.028,87.001,0.487001]
[1773508833709,0.45406442,87.026,87.001,0.487001]
[1773508836715,11.94501529,87.025,87.001,0.487001]
[1773508837898,0.45406442,87.024,87.001,0.487001]
[1773508839698,11.49121496,87.023,87.001,0.487001]
[1773508844616,10.99121496,87.023,87.0,3.74480413]
[1773508844821,10.99121496,87.023,87.001,0.48791993]
[1773508846123,0.45406442,87.023,87.001,0.48791993]
[1773508848813,11.49134701,87.022,87.001,0.48791993]
[1773508849010,0.45406442,87.034,87.011,0.48791993]
[1773508852122,0.46527176,87.032,87.011,0.48791993]
[1773508854535,0.46527176,87.03,87.011,0.48791993]
[1773508855129,0.46527176,87.03,87.008,11.49315525]
[1773508855336,0.46527176,87.03,87.008,11.96421371]
[1773508855637,0.46527176,87.03,87.009,0.47105846]
[1773508859345,0.46527176,87.028,87.009,0.47105846]
[1773508859934,0.46527176,87.032,87.011,0.47105846]
[1773508862646,11.49015867,87.031,87.007,0.47105846]
[1773508862842,0.46527176,87.03,87.007,0.47105846]
[1773508865847,0.46527176,87.028,86.98,0.47105846]
[1773508866033,0.46527176,87.028,86.981,0.47105846]
[1773508866533,0.46527176,87.028,86.991,0.47105846]
[1773508869645,11.49068679,87.027,86.992,11.49530991]
[1773508869828,0.46527176,87.026,86.993,0.47105846]
[1773508872753,0.46527176,87.024,86.994,11.49504563]
[1773508872955,0.46527176,87.024,86.995,0.47105846]
[1773508875651,11.49121496,87.023,86.995,0.47105846]
[1773508875959,0.46527176,87.022,86.995,0.47105846]
[1773508878654,11.49147906,87.021,86.996,11.49478136]
[1773508878855,0.46527176,87.02,86.996,11.96583982]
[1773508880355,0.46527176,87.02,86.997,0.47105846]
[1773508880745,0.46527176,87.018,86.991,11.96650051]
[1773508881057,0.46527176,87.018,86.992,0.47105846]
[1773508882146,0.46527176,87.018,86.991,11.49544205]
[1773508882147,0.46527176,87.018,87.001,0.49797677]
[1773508897584,0.46872881,87.016,87.001,0.49797677]
[1773508904492,0.46872881,87.021,87.001,0.49797677]
[1773508905782,0.46872881,87.019,87.001,0.49797677]
[1773508908782,0.46872881,87.017,87.001,0.49797677]
[1773508913698,11.49187524,87.018,87.001,0.49797677]
[1773508915501,11.49187524,87.018,87.002,0.45811711]
[1773508917386,0.45534177,87.018,87.002,0.45811711]
[1773508934107,0.45534177,87.022,87.002,0.45811711]
[1773508935698,11.49147906,87.021,87.002,0.45811711]
[1773508944716,0.45936259,87.021,87.002,0.45811711]
[1773508947823,11.49161112,87.02,87.002,0.45811711]
[1773508963237,0.45936259,87.025,87.002,0.45811711]
[1773508965739,0.45936259,87.048,87.021,0.48743556]
[1773508967333,0.45936259,87.039,87.008,0.48743556]
[1773508967638,0.45936259,87.037,87.009,7.32]
[1773508968831,0.45936259,87.035,87.009,7.32]
[1773508971822,11.48976262,87.034,87.009,7.32]
[1773508972022,0.46472303,87.033,87.009,7.32]
[1773508972640,0.46472303,87.033,87.011,0.46674752]
[1773508974728,32.46394868,87.05,87.011,0.46674752]
[1773508974729,0.46472303,87.031,87.011,0.46674752]
[1773508976943,0.46472303,87.029,87.011,0.46674752]
[1773508978934,0.46472303,87.027,87.001,300.0]
[1773508979154,3.74455095,87.01,86.971,0.5]
[1773508979439,2.95506722,87.025,86.971,0.5]
[1773508979440,3.74455095,86.99,86.971,0.5]
[1773508979642,3.74455095,87.0,86.971,0.5]
[1773508982945,40.23034747,86.999,86.971,0.5]
[1773508988050,3.74455095,87.01,86.971,0.5]
[1773508998855,40.22572376,87.009,86.973,0.5]
[1773509002561,11.49306393,87.009,86.981,0.5]
[1773509004962,40.22111823,87.019,86.981,0.5]
[1773509014772,7.32,87.018,86.991,0.5]
[1773509016178,11.4920073,87.017,86.991,0.5]
[1773509020168,11.4920073,87.017,87.001,0.5]
[1773509021472,11.49095087,87.025,87.001,0.5]
[1773509025788,11.49095087,87.025,87.002,11.49398864]
[1773509026001,11.49095087,87.025,87.003,0.5]
[1773509026193,11.49095087,87.025,87.001,11.49412075]
[1773509026194,11.49095087,87.025,87.011,0.5]
[1773509027270,11.4896306,87.035,87.011,0.5]
[1773509031792,40.21370712,87.035,87.011,0.5]
[1773509049504,11.4896306,87.035,87.02,3.74612107]
[1773509049709,11.4896306,87.035,87.021,0.5]
[1773509065299,11.4896306,87.035,87.007,0.5]
[1773509082732,11.4896306,87.035,87.005,11.49352267]
[1773509082733,11.4896306,87.035,87.011,0.5]
[1773509112548,11.4896306,87.035,87.013,0.5]
[1773509145388,11.4896306,87.035,87.014,11.49240352]
[1773509145574,11.4896306,87.035,87.015,0.5]
[1773509156191,11.4896306,87.035,87.02,3.74422766]
[1773509156399,11.4896306,87.035,87.021,0.5]
[1773509157899,28.71979136,87.048,87.029,0.5]
[1773509158105,28.71979136,87.048,87.031,0.5]
[1773509158679,11.48699098,87.055,87.031,0.5]
[1773509160399,40.20446843,87.055,87.031,0.5]
[1773509163795,28.71747745,87.055,87.031,0.5]
[1773509165883,40.20446843,87.055,87.031,0.5]
[1773509176104,11.48699098,87.055,87.032,0.5]
[1773509181214,11.4860674,87.062,87.032,0.5]
[1773509181393,11.4860674,87.062,87.033,0.5]
[1773509181594,11.4860674,87.062,87.041,0.5]
[1773509193220,11.4860674,87.062,87.032,0.5]
[1773509200616,11.4860674,87.062,87.04,3.74110691]
[1773509200928,11.4860674,87.062,87.041,0.5]
[1773509203137,0.46237902,87.059,87.01,0.6]
[1773509203434,0.46237902,87.049,87.01,4.34110691]
[1773509203636,0.46237902,87.049,87.01,3.74110691]
[1773509204537,0.46237902,87.047,87.012,11.49257673]
[1773509204738,0.46237902,87.045,87.012,11.49257673]
[1773509205238,0.46237902,87.045,87.013,0.48952723]
[1773509207637,11.48844262,87.044,87.013,0.48952723]
[1773509207834,0.46237902,87.043,87.015,0.48952723]
[1773509209024,0.46237902,87.041,87.015,0.48952723]
[1773509211537,0.45297291,87.039,87.015,0.48952723]
[1773509211838,0.45297291,87.039,87.011,0.49825447]
[1773509213743,11.48923458,87.038,87.013,0.49825447]
[1773509216334,0.45297291,87.038,87.013,0.49825447]
[1773509218048,0.45297291,87.036,87.013,0.49825447]
[1773509220950,11.4896306,87.035,87.013,0.49825447]
[1773509223254,11.4896306,87.035,87.014,11.49240352]
[1773509223455,11.4896306,87.035,87.015,0.49825447]
[1773509230256,11.94260351,87.035,87.015,0.49825447]
[1773509234663,0.45297291,87.035,87.011,0.49825447]
[1773509235546,11.94260351,87.035,87.011,0.49825447]
[1773509236265,0.45297291,87.034,87.011,0.49825447]
[1773509236460,0.45297291,87.039,87.011,0.49825447]
[1773509238947,11.48923458,87.038,87.011,0.49825447]
[1773509239146,0.45297291,87.037,87.011,0.49825447]
[1773509241968,11.48949859,87.036,87.011,0.49825447]
[1773509242147,0.49333593,87.035,87.011,0.49825447]
[1773509244965,0.49333593,87.029,87.011,0.49825447]
[1773509245171,0.49333593,87.019,86.991,0.46449523]
[1773509245971,3.74110691,87.01,86.991,0.46449523]
[1773509246155,0.49333593,87.01,86.991,0.46449523]
[1773509251893,11.9863628,87.01,86.991,0.46449523]
[1773509252885,0.49333593,87.009,86.991,0.46449523]
[1773509259207,11.49319602,87.008,86.991,0.46449523]
[1773509264915,0.49333593,87.008,86.991,0.46449523]
[1773509268026,11.49332812,87.007,86.991,0.46449523]
[1773509270012,0.49333593,87.007,86.991,0.46449523]
[1773509270922,0.48675185,87.018,86.991,0.46449523]
[1773509271116,40.22110113,87.019,86.991,0.46449523]
[1773509271730,40.71563793,87.019,86.991,0.46449523]
[1773509271933,0.4945368,87.018,86.991,0.46449523]
[1773509272229,11.4920073,87.017,86.991,0.46449523]
[1773509274209,0.4945368,87.017,86.991,0.46449523]
[1773509278043,11.49213937,87.016,86.991,0.46449523]
[1773509278332,0.4945368,87.015,86.991,0.46449523]
[1773509281145,11.49240352,87.014,86.991,0.46449523]
[1773509281736,11.98694032,87.014,86.991,0.46449523]
[1773509283218,0.4945368,87.018,86.991,0.46449523]
[1773509287127,11.4920073,87.017,86.991,0.46449523]
[1773509288949,11.49227144,87.015,86.991,0.46449523]
[1773509289634,11.98680824,87.015,86.991,0.46449523]
[1773509290629,0.4945368,87.014,86.991,0.46449523]
[1773509293133,11.49253559,87.013,86.991,0.46449523]
[1773509296853,11.98707239,87.013,86.991,0.46449523]
[1773509299152,0.4945368,87.018,86.991,0.46449523]
[1773509301049,11.4920073,87.017,86.991,0.46449523]
[1773509301230,0.4945368,87.016,86.991,0.46449523]
[1773509302050,11.49227144,87.015,86.991,0.46449523]
[1773509302250,0.48013742,87.014,86.991,0.46449523]
[1773509304343,0.48013742,87.009,86.991,0.46449523]
[1773509307043,0.48013742,87.007,86.991,0.46449523]
[1773509310435,11.49319602,87.008,86.991,0.46449523]
[1773509310642,0.48013742,87.034,86.993,0.46755401]
[1773509310855,0.48013742,87.029,86.993,0.46755401]
[1773509311664,11.49055476,87.028,87.001,0.46755401]
[1773509312034,11.97069218,87.028,87.001,0.46755401]
[1773509312255,11.49055476,87.028,87.001,0.46755401]
[1773509312454,0.48013742,87.027,87.001,0.46755401]
[1773509313562,11.49081883,87.026,87.001,0.46755401]
[1773509315465,0.48013742,87.026,87.001,0.46755401]
[1773509316646,0.48013742,87.032,87.001,0.46755401]
[1773509318269,11.49015867,87.031,87.001,0.46755401]
[1773509318453,0.48013742,87.029,87.001,0.46755401]
[1773509326078,0.48013742,87.027,87.001,0.46755401]
[1773509329182,0.48013742,87.025,87.001,0.46755401]
[1773509330192,0.48013742,87.025,87.002,0.4559715]
[1773509331584,11.49108291,87.024,87.002,0.4559715]
[1773509334280,0.48181279,87.03,87.002,0.4559715]
[1773509335363,0.48181279,87.03,87.002,11.49393691]
[1773509335567,11.97223552,87.029,87.003,0.48929294]
[1773509341781,11.97223552,87.029,87.004,11.49372442]
[1773509342086,11.97223552,87.029,87.005,0.48929294]
[1773509342273,11.49042273,87.029,87.005,0.48929294]
[1773509343590,11.48910258,87.039,87.021,0.48929294]
[1773509345675,0.48181279,87.045,87.021,0.48929294]
[1773509346587,11.48817866,87.046,87.021,0.48929294]
[1773509347578,0.48181279,87.046,87.021,0.48929294]
[1773509349386,11.97012343,87.045,87.021,0.48929294]
[1773509355289,0.48181279,87.055,87.023,0.48929294]
[1773509355493,28.71739428,87.056,87.031,0.48929294]
[1773509356097,29.19920707,87.056,87.031,0.48929294]
[1773509356296,40.6860661,87.056,87.031,0.48929294]
[1773509358795,11.48712293,87.054,87.031,0.48929294]
[1773509359896,0.48181279,87.054,87.031,0.48929294]
[1773509362204,11.48725489,87.053,87.031,0.48929294]
[1773509364305,0.48176558,87.054,87.032,0.4783535]
[1773509366385,0.48176558,87.054,87.034,0.4783535]
[1773509397428,0.49901791,87.059,87.041,0.46244811]
[1773509397627,0.49901791,87.066,87.041,0.46244811]
[1773509398130,0.49901791,87.072,87.056,0.46244811]
[1773509398714,0.49901791,87.077,87.056,0.46244811]
[1773509399010,0.49901791,87.077,87.051,0.46244811]
[1773509399829,0.49901791,87.075,87.051,0.46244811]
[1773509402112,11.48448446,87.074,87.051,0.46244811]
[1773509402826,11.48448446,87.074,87.061,0.46244811]
[1773509403914,28.70669042,87.088,87.061,0.46244811]
[1773509403915,0.49901791,87.077,87.061,0.46244811]
[1773509406544,0.49901791,87.075,87.051,0.46244811]
[1773509407042,0.49901791,87.069,87.04,3.74144399]
[1773509407540,0.49901791,87.069,87.041,0.46244811]
[1773509407943,0.49901791,87.069,87.03,0.46244811]
[1773509408146,0.49901791,87.059,87.03,0.46244811]
[1773509408521,11.48659514,87.058,87.03,0.46244811]
[1773509408721,0.49901791,87.057,87.03,0.46244811]
[1773509410239,0.49901791,87.057,87.025,0.46244811]
[1773509413151,0.49901791,87.055,87.025,0.46244811]
[1773509416145,11.48712293,87.054,87.025,0.46244811]
[1773509416339,0.49901791,87.053,87.025,0.46244811]
[1773509419238,0.49901791,87.051,87.025,0.46244811]
[1773509422154,11.48765077,87.05,87.025,0.46244811]
[1773509422351,0.45289547,87.049,87.025,0.46244811]
[1773509425140,11.48791471,87.048,87.025,0.46244811]
[1773509425454,0.45289547,87.047,87.025,0.46244811]
[1773509426559,0.45289547,87.051,87.025,0.46244811]
[1773509428158,11.48765077,87.05,87.025,0.46244811]
[1773509428461,11.94054624,87.05,87.025,0.46244811]
[1773509429164,11.94054624,87.05,87.031,0.48831476]
[1773509437373,0.45289547,87.054,87.031,0.48831476]
[1773509439278,0.45289547,87.064,87.031,0.48831476]
[1773509440174,11.48593547,87.063,87.031,0.48831476]
[1773509440380,0.45289547,87.062,87.031,0.48831476]
[1773509442282,0.45289547,87.06,87.031,0.48831476]
[1773509443764,0.45289547,87.07,87.051,0.48831476]
[1773509443965,11.48514396,87.069,87.051,0.48831476]
[1773509446189,0.45289547,87.073,87.053,0.48831476]
[1773509446368,11.48456367,87.074,87.053,0.48831476]
[1773509446569,11.48456367,87.074,87.061,0.48831476]
[1773509446776,28.70852578,87.083,87.061,0.48831476]
[1773509446777,0.45289547,87.077,87.061,0.48831476]
[1773509448995,11.48422068,87.076,87.061,0.48831476]
[1773509451489,0.46566045,87.076,87.061,0.48831476]
[1773509451679,0.46566045,87.076,87.053,0.49925241]
[1773509455291,0.46566045,87.074,87.053,0.49925241]
[1773509463599,0.46566045,87.072,87.04,11.06187122]
[1773509463904,0.46566045,87.072,87.04,11.56112363]
[1773509464108,0.46566045,87.072,87.041,0.49925241]
[1773509468011,0.46566045,87.069,87.041,0.49925241]
[1773509468214,40.19708053,87.071,86.94,49.95016509]
[1773509468215,0.46566045,87.049,86.94,49.95016509]
[1773509468396,0.46566045,87.029,86.983,7.32]
[1773509469104,0.46566045,87.029,86.99,3.74187122]
[1773509469312,0.46566045,87.027,86.991,11.49544205]
[1773509470118,0.46566045,87.027,86.992,0.49925241]
[1773509473207,0.46566045,87.025,86.994,0.49925241]
[1773509476428,0.46566045,87.023,86.996,0.49925241]
[1773509479131,0.46566045,87.021,87.001,0.49925241]
[1773509482234,11.49161112,87.02,87.001,0.49925241]
[1773509482433,0.45972901,87.019,87.001,0.49925241]
[1773509484333,0.45972901,87.017,87.001,0.49925241]
[1773509488235,11.49213937,87.016,87.001,0.49925241]
[1773509489640,11.95186838,87.016,87.001,0.49925241]
[1773509493447,0.45972901,87.015,87.001,0.49925241]
[1773509494029,11.49213937,87.016,87.001,0.49925241]
[1773509502552,0.45972901,87.015,86.984,11.49633329]
[1773509502752,0.45972901,87.015,86.99,3.74447478]
[1773509503134,0.45972901,87.015,86.98,3.74447478]
[1773509503335,11.49240352,87.014,86.98,15.24132549]
[1773509503536,0.45972901,87.009,86.974,0.6]
[1773509504545,0.45972901,87.009,86.975,0.46807448]
[1773509504752,0.45972901,87.007,86.975,0.46807448]
[1773509506756,0.45972901,87.005,86.975,0.46807448]
[1773509507357,0.45972901,87.005,86.98,3.74447478]
[1773509507661,0.45972901,87.005,86.981,0.46807448]
[1773509508445,11.49372442,87.004,86.981,0.46807448]
[1773509510850,0.45027238,87.004,86.981,0.46807448]
[1773509513973,11.96995557,87.003,86.981,0.46807448]
[1773509514469,0.47609904,87.002,86.981,0.46807448]
[1773509515272,11.49412075,87.001,86.981,0.46807448]
[1773509526886,0.47609904,87.0,86.981,0.46807448]
[1773509528981,11.49438499,86.999,86.981,0.46807448]
[1773509535778,0.47609904,86.999,86.981,0.46807448]
[1773509537294,0.47609904,87.015,86.981,0.46807448]
[1773509539294,0.47609904,87.013,86.981,0.46807448]
[1773509542390,0.49236623,87.011,86.981,0.46807448]
[1773509545281,11.49293184,87.01,86.981,0.46807448]
[1773509545481,0.49236623,87.009,86.981,0.46807448]
[1773509547200,0.49236623,87.009,86.983,0.46720491]
[1773509548384,0.49236623,87.007,86.983,0.46720491]
[1773509551304,0.49236623,87.005,86.983,0.46720491]
[1773509554395,11.98609065,87.004,86.983,0.46720491]
[1773509554787,0.49236623,87.003,86.983,0.46720491]
[1773509557309,11.49398864,87.002,86.983,0.46720491]
[1773509557608,0.49236623,87.001,86.983,0.46720491]
[1773509560406,11.9866191,87.0,86.983,0.46720491]
[1773509563316,0.49236623,87.005,86.983,0.46720491]
[1773509563696,11.49174318,87.019,86.991,0.46720491]
[1773509563896,11.49174318,87.019,87.0,3.74590204]
[1773509564096,11.49174318,87.019,87.001,0.46720491]
[1773509566622,0.49236623,87.019,87.001,0.46720491]
[1773509569419,0.465537,87.017,87.001,0.46720491]
[1773509572309,11.49213937,87.016,87.001,0.46720491]
[1773509574628,0.45979869,87.016,87.001,0.46720491]
[1773509578311,11.95205203,87.016,87.001,0.46720491]
[1773509581034,0.45979869,87.015,87.001,0.46720491]
[1773509582024,0.45979869,87.031,87.001,0.46720491]
[1773509582332,0.45979869,87.029,87.001,0.46720491]
[1773509584440,0.45979869,87.027,87.001,0.46720491]
[1773509585329,0.45979869,87.027,87.0,3.74590204]
[1773509585541,0.45979869,87.027,86.993,7.32]
[1773509587347,11.49081883,87.026,86.993,7.32]
[1773509587639,0.45979869,87.025,86.993,7.32]